Workbook

Sheet Sheet1
AB1: =TODAY() -> 2018-01-24
B2: ANNUAL SALARY CALCULATIONS | N2: 1000 | T2: Jun | U2: Dec 15th | AA2: 2nd Pay Period
G3: YRS OF SVC | I3: YRS OF SVC | N3: Plus | O3: Plus | T3: & Dec 15th | AA3: May 31st
B4: EMPLOYEE NAME | E4: ANNIV | G4: Longevity | I4: Vacation | L4: LT. ANNIV | M4: BASE | N4: TEAM/ARRF | O4: CERT | P4: TOTAL 1 | Q4: PER CHECK | R4: HOURLY | S4: PER CHECK | T4: MEDIC | U4: LONG | V4: COMP TME | W4: TOTAL PAY | X4: WORK HRS | Y4: HOURLY | Z4: OVERTIME | AA4: HOLIDAY | AB4: PENSION
A5: 1 | B5: Tanner, Pat | E5: 2014-12-02 | G5: =($AB$1-E5)/365 -> 3.147945205 | I5: =($AB$1-E5)/365 -> 3.147945205 | M5: =131334+8000 -> 139334 | O5: 0 | P5: =IF(M5>0,M5+O5,"") -> 139334 | Q5: =IF(M5>0,(M5+O5)/24,"") -> 5805.583333 | R5: =P5/X5 -> 66.9875 | S5: =R5*(X5/24) -> 5805.583333 | T5: 0 | U5: 0 | W5: =IF(M5>0,P5+T5+U5,"") -> 139334 | X5: 2080 | Y5: =IF(M5>0,ROUND((W5/X5),2),"") -> 66.99 | Z5: =IF(M5>0,Y5*1.5,"") -> 100.485 | AA5: 0 | AB5: =IF(M5>0,((W5+AA5)/24)*0.09455,"") -> 548.9179042
A6: 2 | B6: Leidig, Tim | E6: 2015-05-26 | G6: =($AB$1-E6)/365 -> 2.668493151 | I6: =($AB$1-E6)/365 -> 2.668493151 | M6: 131334 | O6: 0 | P6: =IF(M6>0,M6+O6,"") -> 131334 | Q6: 5105.82 | R6: =P6/X6 -> 63.14134615 | S6: =R6*(X6/24) -> 5472.25 | T6: 0 | U6: 0 | W6: =IF(M6>0,P6+T6+U6+V6,"") -> 131334 | X6: 2080 | Y6: 63.14 | Z6: 94.71 | AA6: 0 | AB6: =IF(M6>0,((W6+AA6)/24)*0.10455,"") -> 572.1237375
A7: 3 | B7: Stott, Hugh | E7: 1986-09-15 | G7: 31.38082192 | I7: 31.38082192 | M7: =117834+2857 -> 120691 | N7: 1000 | O7: 1500 | P7: =IF(M7>0,M7+N7+O7,"") -> 123191 | Q7: =IF(M7>0,(M7+O7)/24,"") -> 5091.291667 | R7: =P7/X7 -> 42.30460165 | S7: 5132.958333 | T7: 0 | U7: 2500 | W7: =IF(M7>0,P7+T7+U7,"") -> 125691 | X7: 2912 | Y7: 43.16 | Z7: 64.74 | AA7: 0 | AB7: =IF(M7>0,((W7+AA7)/24)*0.09455,"") -> 495.1701687
A8: 4 | B8: Buccola, Jeff | E8: 2002-03-01 | G8: 15.91232877 | I8: 15.91232877 | K8: =($AB$1-L8)/365 -> 2.901369863 | L8: 2015-03-02 | M8: =117834+2857 -> 120691 | O8: 1250 | P8: =IF(M8>0,M8+N8+O8,"") -> 121941 | Q8: 5080.875 | R8: 41.87534341 | S8: 5080.875 | T8: 0 | U8: 1300 | W8: 123241 | X8: 2912 | Y8: 42.32 | Z8: 63.48 | AA8: 0 | AB8: =IF(M8>0,((W8+AA8)/24)*0.09455,"") -> 485.5181896
A9: 5 | B9: Johnson, Wade | E9: 1999-04-05 | G9: =($AB$1-E9)/365 -> 18.81917808 | I9: =($AB$1-E9)/365 -> 18.81917808 | K9: =($AB$1-L9)/365 -> 2.309589041 | L9: 2015-10-04 | M9: =117834+2857 -> 120691 | O9: 1250 | P9: =IF(M9>0,M9+N9+O9,"") -> 121941 | Q9: =IF(M9>0,(M9+O9)/24,"") -> 5080.875 | R9: =P9/X9 -> 41.87534341 | S9: =R9*(X9/24) -> 5080.875 | T9: 0 | U9: 1300 | W9: 123241 | X9: 2912 | Y9: =IF(M9>0,ROUND((W9/X9),2),"") -> 42.32 | Z9: =IF(M9>0,Y9*1.5,"") -> 63.48 | AA9: 0 | AB9: =IF(M9>0,((W9+AA9)/24)*0.09455,"") -> 485.5181896
A10: 6 | B10: Buenrostro, Jim | E10: 1985-11-15 | G10: 32.21369863 | I10: 32.21369863 | L10: 0.97 | M10: =102834*0.97 -> 99748.98 | N10: 1000 | O10: 1500 | P10: =IF(M10>0,M10+N10+O10,"") -> 102248.98 | Q10: 4218.7075 | R10: 38.15260448 | S10: 4260.374167 | T10: 0 | U10: 2500 | W10: 104748.98 | X10: 2680 | Y10: 39.09 | Z10: 58.635 | AA10: =IF(M10>0,Y10*40,"") -> 1563.6 | AB10: =IF(M10>0,((W10+AA10)/24)*0.09455,"") -> 418.8272683
A11: 7 | B11: Buenrostro, Mike | E11: 1988-07-01 | G11: 29.58630137 | I11: 29.58630137 | M11: 102834 | O11: 1000 | P11: =IF(M11>0,M11+N11+O11,"") -> 103834 | Q11: 4326.416667 | R11: 38.74402985 | S11: 4326.416667 | T11: 0 | U11: 2000 | W11: 105834 | X11: 2680 | Y11: 39.49 | Z11: 59.235 | AA11: =IF(M11>0,Y11*40,"") -> 1579.6 | AB11: 423.1648283
A12: 8 | B12: Day, Jason | E12: 1999-03-15 | G12: 18.87671233 | I12: 18.87671233 | M12: 102834 | N12: 1000 | O12: 1250 | P12: =IF(M12>0,M12+N12+O12,"") -> 105084 | Q12: 4336.833333 | R12: 39.21044776 | S12: 4378.5 | T12: 0 | U12: 1300 | W12: 106384 | X12: 2680 | Y12: 39.7 | Z12: 59.55 | AA12: 1588 | AB12: 425.3646917
A13: 9 | B13: Link, Dave | E13: 1999-04-05 | G13: 18.81917808 | I13: 18.81917808 | K13: =($AB$1-L13)/365 -> 6.57260274 | L13: 7/1/11 | M13: 102834 | N13: 1000 | O13: 1250 | P13: 105084 | Q13: 4336.833333 | R13: 39.21044776 | S13: 4378.5 | T13: 0 | U13: 1300 | W13: 106384 | X13: 2680 | Y13: 39.7 | Z13: 59.55 | AA13: 1588 | AB13: =IF(M13>0,((W13+AA13)/24)*0.09455,"") -> 425.3646917
A14: 10 | B14: Keefe, Jeff | E14: 2002-06-01 | G14: =($AB$1-E14)/365 -> 15.66027397 | I14: 15.66027397 | K14: 4.569863014 | L14: 7/1/13 | M14: 102834 | N14: 1000 | O14: 1250 | P14: 105084 | Q14: =IF(M14>0,(M14+O14)/24,"") -> 4336.833333 | R14: =P14/X14 -> 39.21044776 | S14: =R14*(X14/24) -> 4378.5 | T14: 0 | U14: 1300 | W14: 106384 | X14: 2680 | Y14: =IF(M14>0,ROUND((W14/X14),2),"") -> 39.7 | Z14: =IF(M14>0,Y14*1.5,"") -> 59.55 | AA14: 1588 | AB14: =IF(M14>0,((W14+AA14)/24)*0.09455,"") -> 425.3646917
A15: 11 | B15: Zahara, Ken | E15: 2001-01-02 | G15: =($AB$1-E15)/365 -> 17.07123288 | I15: =($AB$1-E15)/365 -> 17.07123288 | K15: =($AB$1-L15)/365 -> 2.906849315 | L15: 2015-02-28 | M15: 102834 | N15: 0 | O15: 1250 | P15: 104084 | Q15: =IF(M15>0,(M15+O15)/24,"") -> 4336.833333 | R15: =P15/X15 -> 38.83731343 | S15: =R15*(X15/24) -> 4336.833333 | T15: 0 | U15: 1300 | W15: 105384 | X15: 2680 | Y15: =IF(M15>0,ROUND((W15/X15),2),"") -> 39.32 | Z15: =IF(M15>0,Y15*1.5,"") -> 58.98 | AA15: =IF(M15>0,Y15*40,"") -> 1572.8 | AB15: =IF(M15>0,((W15+AA15)/24)*0.09455,"") -> 421.3652267
A16: 12 | B16: Ciszewski, Rick | E16: 2003-06-09 | G16: 14.63835616 | I16: 14.63835616 | K16: 2.564383562 | L16: 2015-07-03 | M16: 102834 | N16: 1000 | O16: 1250 | P16: 105084 | Q16: 4336.833333 | R16: 39.21044776 | S16: 4378.5 | T16: 0 | U16: 1050 | W16: =IF(M16>0,P16+T16+U16,"") -> 106134 | X16: 2680 | Y16: 39.6 | Z16: 59.4 | AA16: 1584 | AB16: 424.3640375
A17: 13 | B17: Gray, Will | E17: 2003-09-03 | G17: 14.40273973 | I17: 14.40273973 | K17: 2.309589041 | L17: 2015-10-04 | M17: 102834 | O17: 1000 | P17: 103834 | Q17: 4326.416667 | R17: 38.74402985 | S17: 4326.416667 | T17: 0 | U17: 1050 | W17: 104884 | X17: 2680 | Y17: 39.14 | Z17: 58.71 | AA17: 1565.6 | AB17: 419.36707
A18: 14 | B18: Korzen, Mike | E18: 2002-03-01 | G18: =($AB$1-E18)/365 -> 15.91232877 | I18: =($AB$1-E18)/365 -> 15.91232877 | K18: =($AB$1-L18)/365 -> 1.583561644 | L18: 2016-06-25 | M18: 99844 | O18: 1250 | P18: 101094 | Q18: =IF(M18>0,(M18+O18)/24,"") -> 4212.25 | R18: =P18/X18 -> 37.72164179 | S18: =R18*(X18/24) -> 4212.25 | T18: 0 | U18: 1300 | W18: =IF(M18>0,P18+T18+U18,"") -> 102394 | X18: 2680 | Y18: =IF(M18>0,ROUND((W18/X18),2),"") -> 38.21 | Z18: =IF(M18>0,Y18*1.5,"") -> 57.315 | AA18: =IF(M18>0,Y18*40,"") -> 1528.4 | AB18: =IF(M18>0,((W18+AA18)/24)*0.09455,"") -> 409.410955
A19: 15 | B19: Hamlin, Scott | E19: 2003-09-09 | G19: 14.38630137 | I19: 14.38630137 | M19: 90023 | N19: 1000 | O19: 500 | P19: 91523 | Q19: 3771.791667 | R19: 34.15037313 | S19: 3813.458333 | T19: 0 | U19: 1050 | W19: 92573 | X19: 2680 | Y19: 34.54 | Z19: 51.81 | AA19: 1381.6 | AB19: 370.1419762
A20: 16 | B20: Hermann, Jacob | E20: 2007-10-15 | G20: 10.28493151 | I20: 10.28493151 | M20: 90023 | N20: 1000 | O20: 1250 | P20: 92273 | Q20: 3803.041667 | R20: =P20/X20 -> 34.43022388 | S20: 3844.708333 | T20: 0 | U20: 1050 | W20: 93323 | X20: 2680 | Y20: 34.82 | Z20: 52.23 | AA20: 1392.8 | AB20: 373.1407871
A21: 17 | B21: Jankowski, Brian | E21: 2003-10-15 | G21: 14.28767123 | I21: 14.28767123 | M21: 90023 | N21: 1000 | O21: 1250 | P21: 92273 | Q21: =IF(M21>0,(M21+O21)/24,"") -> 3803.041667 | R21: 34.43022388 | S21: 3844.708333 | T21: 0 | U21: 1050 | W21: =IF(M21>0,P21+T21+U21,"") -> 93323 | X21: 2680 | Y21: 34.82 | Z21: 52.23 | AA21: 1392.8 | AB21: 373.1407871
A22: 18 | B22: Myers, Michael | E22: 2007-10-15 | G22: 10.28493151 | I22: 10.28493151 | M22: 90023 | N22: =1000+1000 -> 2000 | O22: 1250 | P22: 93273 | Q22: 3803.041667 | R22: 34.80335821 | S22: 3886.375 | T22: 0 | U22: 1050 | W22: 94323 | X22: 2680 | Y22: 35.2 | Z22: 52.8 | AA22: 1408 | AB22: 377.1402521
A23: 19 | B23: Smogur, Frank | E23: 2001-11-01 | G23: 16.24109589 | I23: 16.24109589 | M23: 90023 | N23: =1000+1000 -> 2000 | O23: 1250 | P23: 93273 | Q23: 3803.041667 | R23: 34.80335821 | S23: 3886.375 | T23: 0 | U23: 1300 | W23: 94573 | X23: 2680 | Y23: 35.29 | Z23: 52.935 | AA23: 1411.6 | AB23: 378.1393304
A24: 20 | B24: Zudis, Greg | E24: 2006-02-15 | G24: 11.94794521 | I24: 11.94794521 | M24: 90023 | N24: 1000 | O24: 1250 | P24: 92273 | Q24: 3803.041667 | R24: 34.43022388 | S24: 3844.708333 | T24: 0 | U24: 1050 | W24: 93323 | X24: 2680 | Y24: 34.82 | Z24: 52.23 | AA24: 1392.8 | AB24: 373.1407871
A25: 21 | B25: Maxwell, Andy | E25: 2008-06-16 | G25: 9.61369863 | I25: 9.61369863 | M25: 90023 | N25: 1000 | O25: 500 | P25: 91523 | Q25: 3771.791667 | R25: 34.15037313 | S25: 3813.458333 | T25: 0 | U25: 0 | W25: 91523 | X25: 2680 | Y25: 34.15 | Z25: 51.225 | AA25: 1366 | AB25: 365.9439562
A26: 22 | B26: O'Leary, Brenden | E26: 2008-06-16 | G26: 9.61369863 | I26: 9.61369863 | M26: 90023 | O26: 1000 | P26: 91023 | Q26: 3792.625 | R26: 33.96380597 | S26: 3792.625 | T26: 0 | U26: 0 | W26: 91023 | X26: 2680 | Y26: 33.96 | Z26: 50.94 | AA26: 1358.4 | AB26: 363.9442237
A27: 23 | B27: Therkildsen, Eric | E27: 2008-06-16 | G27: 9.61369863 | I27: 9.61369863 | M27: 90023 | N27: 1000 | O27: 0 | P27: 91023 | Q27: 3750.958333 | R27: 33.96380597 | S27: 3792.625 | T27: 0 | U27: 0 | W27: 91023 | X27: 2680 | Y27: 33.96 | Z27: 50.94 | AA27: 1358.4 | AB27: 363.9442237
A28: 24 | B28: Keller, Matt | E28: 2008-06-16 | G28: =($AB$1-E28)/365 -> 9.61369863 | I28: 9.61369863 | M28: 90023 | N28: =1000+1000 -> 2000 | O28: 1000 | P28: 93023 | Q28: 3792.625 | R28: 34.71007463 | S28: 3875.958333 | T28: 0 | U28: 0 | W28: 93023 | X28: 2680 | Y28: 34.71 | Z28: 52.065 | AA28: 1388.4 | AB28: =IF(M28>0,((W28+AA28)/24)*0.10455,"") -> 411.2796612
A29: 25 | B29: Morrow, Jason | E29: 2009-01-02 | G29: 9.065753425 | I29: 9.065753425 | M29: 90023 | N29: 1000 | O29: 1000 | P29: 92023 | Q29: 3792.625 | R29: 34.3369403 | S29: 3834.291667 | T29: 0 | U29: 0 | W29: 92023 | X29: 2680 | Y29: 34.34 | Z29: 51.51 | AA29: 1373.6 | AB29: =IF(M29>0,((W29+AA29)/24)*0.10455,"") -> 406.8589388 | AC29: 299.29 | AD29: =AB29-AC29 -> 107.5689388
A30: 26 | B30: Ukleja, Justin | E30: 2009-01-02 | G30: 9.065753425 | I30: 9.065753425 | M30: 90023 | N30: 1000 | O30: 1000 | P30: 92023 | Q30: 3792.625 | R30: 34.3369403 | S30: 3834.291667 | T30: 0 | U30: 0 | W30: 92023 | X30: 2680 | Y30: 34.34 | Z30: 51.51 | AA30: 1373.6 | AB30: =IF(M30>0,((W30+AA30)/24)*0.09455,"") -> 367.9436887
A31: 27 | B31: Kral, Ryan | E31: 2009-07-01 | G31: 8.57260274 | I31: 8.57260274 | M31: 90023 | N31: 1000 | O31: 0 | P31: 91023 | Q31: 3750.958333 | R31: 33.96380597 | S31: 3792.625 | T31: 0 | U31: 0 | W31: 91023 | X31: 2680 | Y31: 33.96 | Z31: 50.94 | AA31: 1358.4 | AB31: 363.9442237
A32: 28 | B32: Baseggio, Todd | E32: 2009-07-01 | G32: 8.57260274 | I32: 8.57260274 | M32: 90023 | O32: 1000 | P32: 91023 | Q32: 3792.625 | R32: 33.96380597 | S32: 3792.625 | T32: 0 | U32: 0 | W32: 91023 | X32: 2680 | Y32: 33.96 | Z32: 50.94 | AA32: 1358.4 | AB32: 363.9442237
A33: 29 | B33: Buenrostro, Mike Jr | E33: 2009-11-02 | G33: 8.232876712 | I33: 8.232876712 | M33: 90023 | O33: 1000 | P33: 91023 | Q33: 3792.625 | R33: 33.96380597 | S33: 3792.625 | T33: 0 | U33: 0 | W33: 91023 | X33: 2680 | Y33: 33.96 | Z33: 50.94 | AA33: 1358.4 | AB33: 363.9442237
A34: 30 | B34: Carre, Louis | E34: 2009-11-02 | G34: 8.232876712 | I34: 8.232876712 | M34: 90023 | O34: 500 | P34: 90523 | Q34: 3771.791667 | R34: 33.77723881 | S34: 3771.791667 | T34: 0 | U34: 0 | W34: 90523 | X34: 2680 | Y34: 33.78 | Z34: 50.67 | AA34: 1351.2 | AB34: 361.9460671
A35: 31 | B35: Stazzone, Nick | E35: 2009-11-02 | G35: 8.232876712 | I35: 8.232876712 | M35: 90023 | O35: 500 | P35: 90523 | Q35: 3771.791667 | R35: 33.77723881 | S35: 3771.791667 | T35: 0 | U35: 0 | W35: 90523 | X35: 2680 | Y35: 33.78 | Z35: 50.67 | AA35: 1351.2 | AB35: 361.9460671
A36: 32 | B36: Newman, Michael | E36: 2011-09-01 | G36: 6.402739726 | I36: 6.402739726 | M36: 90023 | N36: 1000 | O36: 1250 | P36: 92273 | Q36: 3803.041667 | R36: 34.43022388 | S36: 3844.708333 | T36: 0 | U36: 0 | W36: 92273 | X36: 2680 | Y36: 34.43 | Z36: 51.645 | AA36: 1377.2 | AB36: 368.9427671
A37: 33 | B37: Repiscak, Noel | E37: 2012-07-02 | G37: 5.567123288 | I37: 5.567123288 | M37: 90023 | O37: 500 | P37: 90523 | Q37: 3771.791667 | R37: =P37/X37 -> 33.77723881 | S37: 3771.791667 | T37: 0 | U37: 0 | W37: 90523 | X37: 2680 | Y37: 33.78 | Z37: =IF(M37>0,Y37*1.5,"") -> 50.67 | AA37: 1351.2 | AB37: =IF(M37>0,((W37+AA37)/24)*0.09455,"") -> 361.9460671
A38: 34 | B38: Latas, Timothy | E38: 2013-05-15 | G38: =($AB$1-E38)/365 -> 4.698630137 | I38: 4.698630137 | M38: 85296 | O38: 0 | P38: 85296 | Q38: =IF(M38>0,(M38+O38)/24,"") -> 3554 | R38: =P38/X38 -> 31.82686567 | S38: =R38*(X38/24) -> 3554 | T38: 0 | U38: 0 | W38: =IF(M38>0,P38+T38+U38,"") -> 85296 | X38: 2680 | Y38: =IF(M38>0,ROUND((W38/X38),2),"") -> 31.83 | Z38: =IF(M38>0,Y38*1.5,"") -> 47.745 | AA38: 1273.2 | AB38: =IF(M38>0,((W38+AA38)/24)*0.09455,"") -> 341.0465775
A39: 35 | B39: Ronge, Erik | E39: 2014-01-14 | G39: 4.030136986 | I39: =($AB$1-E39)/365 -> 4.030136986 | M39: 85296 | N39: 1000 | O39: 500 | P39: 86796 | Q39: 3574.833333 | R39: 32.38656716 | S39: 3616.5 | T39: 0 | U39: 0 | W39: 86796 | X39: 2680 | Y39: 32.39 | Z39: 48.585 | AA39: 1295.6 | AB39: =IF(M39>0,((W39+AA39)/24)*0.09455,"") -> 347.0441992
A40: 36 | B40: Maczko, Kevin | E40: 2014-06-16 | G40: 3.610958904 | I40: =($AB$1-E40)/365 -> 3.610958904 | M40: 80289 | N40: 500 | O40: 0 | P40: 80789 | Q40: 3345.375 | R40: 30.14514925 | S40: 3366.208333 | T40: 0 | U40: 0 | W40: 80789 | X40: 2680 | Y40: 30.15 | Z40: 45.225 | AA40: =IF(M40>0,Y40*40,"") -> 1206 | AB40: 323.0261354
A41: 37 | B41: Bulleri, Nicholas | E41: 2015-03-23 | G41: 2.843835616 | I41: 2.843835616 | M41: 75013 | O41: 500 | P41: 75513 | Q41: 3146.375 | R41: 28.17649254 | S41: 3146.375 | U41: 0 | W41: 75513 | X41: 2680 | Y41: 28.18 | Z41: 42.27 | AA41: 1127.2 | AB41: 301.9304546
A42: 38 | B42: Fogarty, Patrick | E42: 2015-06-29 | G42: 2.575342466 | I42: =($AB$1-E42)/365 -> 2.575342466 | M42: 75013 | O42: 0 | P42: 75013 | Q42: =IF(M42>0,(M42+O42)/24,"") -> 3125.541667 | R42: =P42/X42 -> 27.98992537 | S42: 3125.541667 | U42: 0 | W42: =IF(M42>0,P42+T42+U42,"") -> 75013 | X42: 2680 | Y42: =IF(M42>0,ROUND((W42/X42),2),"") -> 27.99 | Z42: =IF(M42>0,Y42*1.5,"") -> 41.985 | AA42: 1119.6 | AB42: =IF(M42>0,((W42+AA42)/24)*0.09455,"") -> 299.9307221
A43: 39 | B43: Fennell, Christopher | E43: 2015-11-16 | G43: =($AB$1-E43)/365 -> 2.191780822 | I43: =($AB$1-E43)/365 -> 2.191780822 | M43: 75013 | O43: 0 | P43: 75013 | Q43: =IF(M43>0,(M43+O43)/24,"") -> 3125.541667 | R43: =P43/X43 -> 27.98992537 | S43: =R43*(X43/24) -> 3125.541667 | U43: 0 | W43: =IF(M43>0,P43+T43+U43,"") -> 75013 | X43: 2680 | Y43: =IF(M43>0,ROUND((W43/X43),2),"") -> 27.99 | Z43: =IF(M43>0,Y43*1.5,"") -> 41.985 | AA43: 1119.6 | AB43: =IF(M43>0,((W43+AA43)/24)*0.10455,"") -> 331.6526388
A44: 40 | B44: Malhiot, Jonathan | E44: 2016-06-27 | G44: 1.578082192 | I44: 1.578082192 | M44: 69173 | O44: 0 | P44: 69173 | Q44: 2882.208333 | R44: =P44/X44 -> 25.8108209 | S44: 2882.208333 | U44: 0 | W44: 69173 | X44: 2680 | Y44: 25.81 | Z44: 38.715 | AA44: 1032.4 | AB44: =IF(M44>0,((W44+AA44)/24)*0.09455,"") -> 276.5800237
A45: 41 | B45: Fritz, James | E45: 2016-10-17 | G45: =($AB$1-E45)/365 -> 1.271232877 | I45: =($AB$1-E45)/365 -> 1.271232877 | M45: 69173 | O45: 0 | P45: 69173 | Q45: =IF(M45>0,(M45+O45)/24,"") -> 2882.208333 | R45: =P45/X45 -> 25.8108209 | S45: =R45*(X45/24) -> 2882.208333 | U45: 0 | W45: =IF(M45>0,P45+T45+U45,"") -> 69173 | X45: 2680 | Y45: =IF(M45>0,ROUND((W45/X45),2),"") -> 25.81 | Z45: =IF(M45>0,Y45*1.5,"") -> 38.715 | AA45: 1032.4 | AB45: =IF(M45>0,((W45+AA45)/24)*0.09455,"") -> 276.5800237
A46: 42 | B46: Buenrostro, Joe | E46: 1978-06-01 | G46: 39.67671233 | I46: =($AB$1-E46)/365 -> 39.67671233 | M46: 72471 | P46: =IF(M46>0,M46+O46,"") -> 72471 | Q46: 3019.625 | R46: =P46/X46 -> 34.84182692 | S46: =R46*(X46/24) -> 3019.625 | T46: 0 | W46: 72471 | X46: 2080 | Y46: 34.84 | Z46: 0 | AA46: 0 | AB46: =IF(M46>0,((W46+AA46)/24)*0.045,"") -> 135.883125
B48: Chiefs = 2080/24 | E48: =2080/24 -> 86.66666667 | O48: Vacation | Q48: Days Off | R48: Hours | U48: Longevity | X48: $ | Y48: Firefighter Wages | AA48: $
B49: DC = 2912/24 | E49: =2912/24+0.01 -> 121.3433333 | O49: Completion of 1st Year | Q49: 3 | R49: =Q49*24 -> 72 | U49: After 10 Years | X49: 1050 | Y49: Start | AA49: 66821
B50: FF = 2680/24 | E50: =2680/24 -> 111.6666667 | O50: Years 2-5 | Q50: 6 | R50: =Q50*24 -> 144 | U50: After 15 Years | X50: 1300 | Y50: After one year | AA50: 69173
G51: Health Insurance | L51: FY18 | M51: 0.12 | O51: Years 6-10 | Q51: 9 | R51: 216 | U51: After 20 Years | X51: 1550 | Y51: After two years | AA51: 75013
L52: FY19 | M52: 0.14 | O52: Years 11-15 | Q52: 11 | R52: 264 | U52: After 25 Years | X52: 2000 | Y52: After three years | AA52: 80289
B53: Acting Shift Commander = $4.00 | L53: FY120 | M53: 0.16 | O53: Years 16-20 | Q53: 13 | R53: 312 | U53: After 30 Years | X53: 2500 | Y53: After four years | AA53: 85296
B54: Acting Lieutenant (Rank) = $2.40 | O54: Years 21-25 | Q54: 14 | R54: 336 | Y54: After five years | AA54: 90023
B55: 7G Wages = $29.25 | O55: Years 26-30 | Q55: 15 | R55: 360 | Y55: Lieutenant Wages | AA55: $
Y56: Start | AA56: 96947
Y57: After one year | AA57: 99844
Y58: After two years | AA58: 102834
P67: =IF(M67>0,M67+O67,"") ->  | Q67: =IF(M67>0,(M67+O67)/24,"") ->  | R67: =IF(B67>0,ROUND((P67/Q67),2),"") ->  | W67: =IF(M67>0,P67+T67+U67,"") ->  | Y67: =IF(M67>0,ROUND((W67/X67),2),"") ->  | Z67: =IF(M67>0,Y67*1.5,"") ->  | AA67: =IF(M67>0,Y67*30,"") ->  | AB67: =IF(M67>0,((W67+AA67)/24)*0.09455,"") -> 
P68: =SUM(P5:P35) -> 3132812.98 | R68: =IF(B68>0,ROUND((P68/Q68),2),"") ->  | W68: =IF(M68>0,P68+T68+U68,"") ->  | Y68: =IF(M68>0,ROUND((W68/X68),2),"") ->  | Z68: =IF(M68>0,Y68*1.5,"") ->  | AA68: =IF(M68>0,Y68*30,"") ->  | AB68: =IF(M68>0,((W68+AA68)/24)*0.09455,"") -> 
R69: =IF(B69>0,ROUND((P69/Q69),2),"") ->  | W69: =SUM(W15:W35) -> 1984987 | Y69: =IF(M69>0,ROUND((W69/X69),2),"") ->  | Z69: =IF(M69>0,Y69*1.5,"") ->  | AA69: =SUM(AA15:AA35) -> 29626.4 | AB69: =IF(M69>0,((W69+AA69)/24)*0.09455,"") -> 

Sheet Sheet2

Sheet Sheet3
E11: =24+77.05+12 -> 113.05
E12: =1482.24*0.10455 -> 154.968192
E13: =113.05+15.5+4 -> 132.55
E14: =72+24+17.05 -> 113.05
E15: =2656.08*0.09455 -> 251.132364
E16: =72+24 +17.05 -> 113.05
E17: =65.05+24 -> 89.05
